bitfinex/quotes_BTCUSD_20240617
["timestamp","ask_amount","ask_price","bid_price","bid_amount"]
[1718619404617,1.57873843,65767.0,65766.0,0.00085]
[1718619404831,1.59273843,65767.0,65766.0,0.00085]
[1718619405039,1.59255544,65767.0,65766.0,0.00085]
[1718619405902,1.94353754,65767.0,65766.0,0.00085]
[1718619406319,2.04353754,65767.0,65766.0,0.00085]
[1718619406519,2.05753754,65767.0,65766.0,0.00185]
[1718619406728,2.0575358,65767.0,65766.0,0.00185]
[1718619407366,2.05750984,65767.0,65766.0,0.00185]
[1718619407785,1.95750984,65767.0,65766.0,0.00185]
[1718619408639,1.95750343,65767.0,65766.0,0.00185]
[1718619409698,2.05750343,65767.0,65766.0,0.00185]
[1718619409908,2.10240653,65767.0,65766.0,0.00185]
[1718619411038,2.12485879,65767.0,65766.0,0.00185]
[1718619411859,2.42896179,65767.0,65766.0,0.00185]
[1718619413479,0.37928373,65767.0,65766.0,0.00185]
[1718619413714,0.18038815,65767.0,65766.0,0.37686854]
[1718619413913,0.18038815,65767.0,65766.0,0.41455539]
[1718619414374,0.01433715,65767.0,65766.0,0.41455539]
[1718619414559,0.00033715,65767.0,65766.0,0.41355539]
[1718619414760,0.00733715,65767.0,65766.0,0.41455539]
[1718619415098,0.15238815,65767.0,65766.0,0.41455539]
[1718619415524,0.15438815,65767.0,65766.0,0.41455539]
[1718619415755,0.15438815,65767.0,65766.0,0.41425839]
[1718619416140,0.15438815,65767.0,65766.0,0.41325839]
[1718619416596,0.00233715,65767.0,65766.0,0.41325839]
[1718619419797,0.002,65767.0,65766.0,0.89242039]
[1718619420016,0.002,65767.0,65766.0,0.43625839]
[1718619421102,0.001,65767.0,65766.0,0.44325839]
[1718619421310,0.00133715,65767.0,65766.0,0.42025839]
[1718619421520,0.002,65767.0,65766.0,0.42125839]
[1718619422373,0.002,65767.0,65766.0,0.87742039]
[1718619422618,0.002,65767.0,65766.0,0.42125839]
[1718619423083,0.001,65767.0,65766.0,0.41425839]
[1718619423352,0.001,65767.0,65766.0,0.87042039]
[1718619423570,0.002,65767.0,65766.0,0.88742039]
[1718619423786,0.00293501,65767.0,65766.0,1.18152839]
[1718619423998,0.00293501,65767.0,65766.0,0.87742039]
[1718619424218,0.00293501,65767.0,65766.0,0.87739106]
[1718619424435,0.00293501,65767.0,65766.0,0.90039106]
[1718619425212,0.00293501,65767.0,65766.0,1.67069485]
[1718619425420,0.00293501,65767.0,65766.0,1.88895139]
[1718619425630,0.00293501,65767.0,65766.0,1.87069485]
[1718619426687,0.00293501,65767.0,65766.0,1.92069485]
[1718619426894,0.00293501,65767.0,65766.0,0.95837085]
[1718619427136,0.00293501,65767.0,65766.0,1.28073367]
[1718619427363,0.00293501,65767.0,65766.0,1.56658685]
[1718619427594,0.00293501,65767.0,65766.0,0.79631685]
[1718619428061,0.00293501,65767.0,65766.0,1.56658685]
[1718619428288,0.00293501,65767.0,65766.0,1.10042485]
[1718619428519,0.00293501,65767.0,65766.0,1.25247885]
[1718619428758,0.00293501,65767.0,65766.0,1.55658685]
[1718619429417,0.00293501,65767.0,65766.0,1.87069485]
[1718619429617,0.00293501,65767.0,65766.0,1.56658685]
[1718619429970,0.00293501,65767.0,65766.0,1.44039764]
[1718619430172,0.00293501,65767.0,65766.0,1.56657965]
[1718619430379,0.00293501,65767.0,65766.0,1.5847819]
[1718619431269,0.00293501,65767.0,65766.0,1.45859989]
[1718619431486,0.00293501,65767.0,65766.0,1.58478066]
[1718619431698,0.00293501,65767.0,65766.0,1.88888866]
[1718619431906,0.00293501,65767.0,65766.0,2.22248866]
[1718619432115,0.00093501,65774.0,65773.0,1.519066]
[1718619432362,0.00093501,65774.0,65773.0,1.82033456]
[1718619433030,0.00093501,65774.0,65773.0,0.74606856]
[1718619433261,0.00093501,65774.0,65773.0,0.37098077]
[1718619433262,0.15330716,65774.0,65773.0,0.37098077]
[1718619433469,0.00127216,65774.0,65773.0,0.40807885]
[1718619433887,0.00127216,65774.0,65773.0,0.16327885]
[1718619434116,0.45647815,65769.0,65768.0,0.1351]
[1718619434325,0.45647815,65769.0,65768.0,0.26129149]
[1718619434537,0.30700601,65774.0,65768.0,0.1351]
[1718619434538,0.00033715,65771.0,65768.0,0.1351]
[1718619434744,0.15497101,65774.0,65769.0,0.0239253]
[1718619434745,0.07604389,65770.0,65769.0,0.0239253]
[1718619434954,0.07638104,65770.0,65769.0,0.0239253]
[1718619435174,0.07604389,65770.0,65769.0,0.0239253]
[1718619435386,0.07604389,65770.0,65769.0,0.15011995]
[1718619435612,0.07638104,65770.0,65769.0,0.15011995]
[1718619436025,0.07638104,65770.0,65769.0,0.15211995]
[1718619437095,0.07638104,65770.0,65769.0,0.15511995]
[1718619437303,0.00093501,65774.0,65769.0,0.15511995]
[1718619437516,0.00127216,65774.0,65770.0,0.16563195]
[1718619437945,0.00127216,65774.0,65771.0,0.12619465]
[1718619438161,0.00093501,65774.0,65773.0,0.152038]
[1718619438572,0.00127216,65774.0,65773.0,0.1261875]
[1718619438801,0.00127216,65774.0,65773.0,0.15885251]
[1718619439016,0.00127216,65774.0,65773.0,0.03266501]
[1718619439227,0.00033715,65770.0,65769.0,0.0269253]
[1718619439506,0.00033715,65770.0,65769.0,0.15311777]
[1718619440119,0.45647215,65770.0,65769.0,0.15311777]
[1718619440347,0.15238215,65770.0,65769.0,0.15311777]
[1718619440953,0.15238215,65770.0,65769.0,0.15011777]
[1718619441404,0.45647215,65770.0,65769.0,0.15011777]
[1718619442242,0.77056215,65770.0,65769.0,0.12919247]
[1718619443588,0.77056215,65770.0,65769.0,0.003]
[1718619443784,1.07465215,65770.0,65769.0,0.005]
[1718619444233,1.56234215,65770.0,65769.0,0.002]
[1718619444436,1.91364215,65770.0,65769.0,0.002]
[1718619444569,2.38629118,65770.0,65769.0,0.002]
[1718619444781,1.76663994,65770.0,65769.0,0.002]
[1718619445254,1.07469715,65767.0,65766.0,0.000553]
[1718619446746,1.07669715,65767.0,65766.0,0.000553]
[1718619447567,1.48080015,65767.0,65766.0,0.000553]
[1718619447895,1.58650015,65767.0,65766.0,0.000553]
[1718619449656,1.68650015,65767.0,65766.0,0.000553]
[1718619449859,1.58650015,65767.0,65766.0,0.000553]
[1718619450738,1.68650015,65767.0,65766.0,0.000553]
[1718619450944,1.83858794,65767.0,65766.0,0.000553]
[1718619451157,2.28109029,65767.0,65766.0,0.000553]
[1718619451415,2.18109029,65767.0,65766.0,0.000553]
[1718619451619,1.86548794,65767.0,65766.0,0.000553]
[1718619451823,1.86448794,65767.0,65766.0,0.000553]
[1718619452306,1.86348794,65767.0,65766.0,0.000553]
[1718619452503,1.86548794,65767.0,65766.0,0.000553]
[1718619452665,1.86448794,65767.0,65766.0,0.000553]
[1718619453069,1.44748494,65767.0,65766.0,0.000553]
[1718619453430,1.44548494,65767.0,65766.0,0.000553]
[1718619453898,1.45948494,65767.0,65766.0,0.000553]
[1718619454126,1.44548494,65767.0,65766.0,0.000553]
[1718619454360,1.45948494,65767.0,65766.0,0.001553]
[1718619454757,1.44548494,65767.0,65766.0,0.000553]
[1718619455186,1.45948494,65767.0,65766.0,0.001553]
[1718619455633,1.47348494,65767.0,65766.0,0.001553]
[1718619455844,1.44548494,65767.0,65766.0,0.001553]
[1718619456072,1.44548494,65767.0,65766.0,0.000553]
[1718619456073,1.43148494,65767.0,65766.0,0.000553]
[1718619456517,1.44548494,65767.0,65766.0,0.000553]
[1718619456720,1.43148494,65767.0,65766.0,0.000553]
[1718619457340,1.44548494,65767.0,65766.0,0.000553]
[1718619457549,1.44548494,65767.0,65766.0,0.001553]
[1718619457771,1.78197878,65767.0,65766.0,0.001553]
[1718619458214,1.86797878,65767.0,65766.0,0.000553]
[1718619458388,1.76797878,65767.0,65766.0,0.000553]
[1718619458628,1.46387578,65767.0,65766.0,0.001553]
[1718619458832,1.76797878,65767.0,65766.0,0.001553]
[1718619459035,1.60167578,65767.0,65766.0,0.001553]
[1718619459272,2.00577878,65767.0,65766.0,0.001553]
[1718619459490,2.05577878,65767.0,65766.0,0.001553]
[1718619459724,2.462646,65767.0,65766.0,0.001553]
[1718619459927,2.91422001,65767.0,65766.0,1e-06]
[1718619460136,3.2737407,65767.0,65766.0,1e-06]
[1718619460367,3.18420526,65767.0,65766.0,1e-06]
[1718619460829,3.18420526,65767.0,65741.0,0.1363]
[1718619460830,1.478612,65760.0,65741.0,0.1363]
[1718619461039,2.48905359,65760.0,65741.0,0.1363]
[1718619461699,2.48905359,65760.0,65737.0,0.2443]
[1718619461700,2.98445959,65760.0,65737.0,0.2443]
[1718619461925,2.68032359,65760.0,65737.0,0.2443]
[1718619462382,2.69432359,65760.0,65759.0,0.00306211]
[1718619463198,2.70832359,65760.0,65759.0,0.00306211]
[1718619463375,2.70825673,65760.0,65759.0,0.00306211]
[1718619464058,3.01239273,65760.0,65759.0,0.00306211]
[1718619464691,2.70825673,65760.0,65759.0,0.00306211]
[1718619465334,2.82879273,65760.0,65759.0,0.00306211]
[1718619465551,3.01239273,65760.0,65759.0,0.00306211]
[1718619465980,3.01239273,65760.0,65734.0,0.1007]
[1718619465981,0.30458815,65735.0,65734.0,0.1007]
[1718619466211,0.30458815,65735.0,65723.0,0.45626336]
[1718619466212,0.01,65734.0,65723.0,0.45626336]
[1718619466413,0.01,65734.0,65727.0,0.2305]
[1718619466414,0.76104715,65728.0,65727.0,0.2305]
[1718619466897,0.45676315,65728.0,65727.0,0.2305]
[1718619467124,0.76104715,65728.0,65727.0,0.25355]
[1718619467356,0.77104715,65728.0,65727.0,0.2305]
[1718619468421,0.77104715,65728.0,65727.0,0.131]
[1718619469223,0.77204715,65728.0,65727.0,0.131]
[1718619469747,0.46678415,65725.0,65724.0,0.1009]
[1718619469972,0.46679015,65724.0,65723.0,0.1269]
[1718619470192,0.00033715,65720.0,65719.0,0.1009]
[1718619470407,0.45681815,65720.0,65719.0,0.1009]
[1718619470620,0.76113915,65720.0,65719.0,0.1009]
[1718619472127,0.45681815,65720.0,65719.0,0.1009]
[1718619472342,0.15249715,65720.0,65719.0,0.1009]
[1718619472584,0.00033715,65720.0,65719.0,0.1009]
[1718619472819,0.00133715,65720.0,65719.0,0.1009]
[1718619473094,0.45781815,65720.0,65719.0,0.1009]
[1718619473340,0.45682415,65719.0,65718.0,0.12735642]
[1718619475639,0.76114915,65719.0,65718.0,0.12735642]
[1718619475846,0.45682415,65719.0,65718.0,0.12735642]
[1718619476636,0.45682415,65719.0,65718.0,0.25366094]
[1718619476854,0.304325,65719.0,65718.0,0.25366094]
[1718619477227,0.45682415,65719.0,65718.0,0.25366094]
[1718619477453,0.76114915,65719.0,65718.0,0.12735642]
[1718619477618,0.45682415,65719.0,65718.0,0.25366187]
[1718619478035,1.41116194,65719.0,65718.0,0.00045642]
[1718619478237,1.61656194,65719.0,65718.0,0.00045642]
[1718619478445,1.50116194,65719.0,65718.0,0.00045642]
[1718619478616,0.00033715,65728.0,65720.0,0.2415]
[1718619478815,0.00033715,65732.0,65727.0,0.2415]
[1718619479059,0.304231,65740.0,65729.0,0.2415]
[1718619479060,0.00033715,65730.0,65729.0,0.2415]
[1718619479244,0.00033715,65740.0,65735.0,0.152125]
[1718619479444,0.00033715,65737.0,65736.0,0.36470385]
[1718619479595,0.00033715,65737.0,65736.0,0.40117424]
[1718619479596,0.45670015,65737.0,65736.0,0.40117424]
[1718619479831,0.00033715,65737.0,65736.0,0.40117424]
[1718619480419,0.304218,65743.0,65736.0,0.40117424]
[1718619480420,0.00033715,65743.0,65736.0,0.40117424]
[1718619480882,0.00033715,65743.0,65737.0,0.12630385]
[1718619481079,0.152113,65741.0,65737.0,0.12630385]
[1718619481290,0.07638104,65738.0,65736.0,0.2384]
[1718619481503,0.07638104,65738.0,65723.0,0.18945746]
[1718619481504,0.00033715,65733.0,65732.0,0.1015]
[1718619481719,0.00033715,65734.0,65732.0,0.12627612]
[1718619481984,0.00033715,65736.0,65733.0,0.12627612]
[1718619482206,0.00133715,65737.0,65735.0,0.2255]
[1718619482471,0.1836,65739.0,65735.0,0.2255]
[1718619482472,0.00033715,65736.0,65735.0,0.2255]
[1718619482694,0.15246015,65736.0,65735.0,0.35176909]
[1718619482900,0.00033715,65736.0,65735.0,0.35176909]
[1718619483506,0.00133715,65736.0,65735.0,0.35176909]
[1718619483760,0.001,65736.0,65735.0,0.386946]
[1718619483993,0.001,65736.0,65735.0,1.451824]
[1718619484215,0.001,65736.0,65735.0,1.484824]
[1718619484447,0.1836,65758.0,65751.0,0.0991]
[1718619484448,0.4739,65754.0,65751.0,0.0991]
[1718619484658,0.00033715,65758.0,65752.0,0.145019]
[1718619484889,0.00033715,65755.0,65753.0,0.12626909]
[1718619485130,0.00033715,65755.0,65754.0,0.12626909]
[1718619485361,0.00033715,65758.0,65754.0,0.12626909]
[1718619485585,0.152073,65758.0,65755.0,0.1785164]
[1718619485856,0.00033715,65760.0,65755.0,0.1785164]
[1718619485857,0.00033715,65760.0,65756.0,0.12626909]
[1718619486064,0.00033715,65760.0,65755.0,0.05224731]
[1718619486065,0.01,65758.0,65757.0,0.12626909]
[1718619486302,0.00033715,65760.0,65757.0,0.12626909]
[1718619486492,0.00033715,65760.0,65752.0,0.1199]
[1718619486493,0.00033715,65754.0,65752.0,0.1199]
[1718619486718,0.00033715,65754.0,65753.0,0.14812744]
[1718619486930,0.011,65755.0,65753.0,0.30021044]
[1718619487135,0.011,65755.0,65754.0,0.12622744]
[1718619487340,0.013,65758.0,65754.0,0.12622744]
[1718619487788,0.01333715,65758.0,65757.0,0.001]
[1718619488006,0.00033715,65758.0,65757.0,0.12722744]
[1718619488230,0.45655415,65758.0,65757.0,0.12722744]
[1718619488446,0.45755415,65758.0,65757.0,0.13622744]
[1718619488664,0.76069915,65758.0,65757.0,0.001]
[1718619488879,0.77069915,65758.0,65757.0,0.001]
[1718619489103,0.15240915,65758.0,65757.0,0.006]
[1718619489319,0.46655415,65758.0,65757.0,0.001]
[1718619489552,0.152083,65754.0,65748.0,0.2303]
[1718619489768,0.152083,65754.0,65743.0,0.152107]
[1718619489769,0.15244215,65744.0,65743.0,0.219]
[1718619489973,0.45665215,65744.0,65743.0,0.34525179]
[1718619490229,0.45665215,65744.0,65743.0,0.34525324]
[1718619490451,0.15245115,65740.0,65739.0,0.1249]
[1718619490660,0.15245115,65740.0,65739.0,0.25115821]
[1718619490868,0.304195,65748.0,65739.0,0.25115821]
[1718619490869,0.00033715,65747.0,65739.0,0.25115821]
[1718619491073,0.00033715,65744.0,65740.0,0.16559172]
[1718619491283,0.1521,65746.0,65741.0,0.12625821]
[1718619491494,0.15244915,65741.0,65740.0,0.03933351]
[1718619491697,0.15244915,65741.0,65740.0,0.16558987]
[1718619492194,0.152112,65741.0,65740.0,0.16558987]
[1718619492417,0.46625379,65754.0,65740.0,0.19144751]
[1718619492418,0.00033715,65747.0,65740.0,0.19144751]
[1718619492627,0.001,65746.0,65741.0,0.17848755]
[1718619492847,0.001,65744.0,65743.0,0.001]
[1718619493071,0.001,65744.0,65743.0,0.17170382]
[1718619493296,0.001,65746.0,65743.0,0.17070382]
[1718619493499,0.001,65746.0,65744.0,0.12625356]
[1718619493709,0.001,65746.0,65743.0,0.04445026]
[1718619493917,0.15244615,65742.0,65741.0,0.04023399]
[1718619494180,0.00033715,65742.0,65740.0,0.014]
[1718619494382,0.07604389,65744.0,65741.0,0.12625455]
[1718619494383,0.00033715,65744.0,65741.0,0.12625455]
[1718619494583,0.00033715,65744.0,65743.0,0.001]
[1718619494795,0.00033715,65744.0,65743.0,0.15377001]
[1718619495016,0.00033715,65744.0,65743.0,0.001]
[1718619495017,1.10654994,65744.0,65743.0,0.001]
[1718619495236,1.10654994,65744.0,65743.0,0.009]
[1718619495237,1.51135994,65744.0,65743.0,0.009]
[1718619495452,1.61135994,65744.0,65743.0,0.009]
[1718619496107,1.06518415,65737.0,65736.0,0.00085]
[1718619496316,1.41087194,65737.0,65736.0,0.00085]
[1718619496747,1.40087194,65737.0,65736.0,0.00085]
[1718619497209,1.40068894,65737.0,65736.0,0.00085]
[1718619497618,0.79220494,65737.0,65736.0,0.00085]
[1718619497847,1.09644694,65737.0,65736.0,0.00085]
[1718619498269,1.10644694,65737.0,65736.0,0.00085]
[1718619498498,1.41068894,65737.0,65736.0,0.00085]
[1718619499004,1.09644694,65737.0,65736.0,0.00185]
[1718619499265,1.11744694,65737.0,65736.0,0.00185]
[1718619499507,1.53168894,65737.0,65736.0,0.00085]
[1718619499765,2.08863094,65737.0,65736.0,0.00185]
[1718619500002,2.07863094,65737.0,65736.0,0.00185]
[1718619500468,1.67438894,65737.0,65736.0,0.00185]
[1718619500883,1.66038894,65737.0,65736.0,0.00085]
[1718619501977,1.96463094,65737.0,65736.0,0.00085]
[1718619502182,2.2018689,65737.0,65736.0,0.00085]
[1718619502387,2.14690094,65737.0,65736.0,0.00085]
[1718619502743,2.15690094,65737.0,65736.0,0.00085]
[1718619503097,2.05690094,65737.0,65736.0,0.00085]
[1718619503641,2.06790094,65737.0,65736.0,0.00185]
[1718619504303,2.05690094,65737.0,65736.0,0.00085]
[1718619504528,2.15690094,65737.0,65736.0,0.00085]
[1718619504994,2.16890094,65737.0,65736.0,0.00185]
[1718619506517,2.16890094,65737.0,65718.0,0.00045642]
[1718619506518,1.065137,65719.0,65718.0,0.00045642]
[1718619506725,1.21756194,65719.0,65718.0,0.00045642]
[1718619507387,0.92323694,65719.0,65718.0,0.00045642]
[1718619507989,0.92323694,65719.0,65718.0,0.00345642]
[1718619508382,0.91323694,65719.0,65718.0,0.00345642]
[1718619508643,1.21756194,65719.0,65718.0,0.00345642]
[1718619508877,0.91323694,65719.0,65718.0,0.00345642]
[1718619509457,0.91423694,65719.0,65718.0,0.00345642]
[1718619509648,0.92423694,65719.0,65718.0,0.00345642]
[1718619510243,0.30558694,65719.0,65718.0,0.00345642]
[1718619510443,0.60991194,65719.0,65718.0,0.00345642]
[1718619510645,0.91423694,65719.0,65718.0,0.00345642]
[1718619510844,0.91323694,65719.0,65718.0,0.00345642]
[1718619511338,0.91323694,65719.0,65718.0,0.00045642]
[1718619511678,0.91423694,65719.0,65718.0,0.00045642]
[1718619512417,0.91423694,65719.0,65718.0,0.09815642]
[1718619513092,0.91323694,65719.0,65718.0,0.09815642]
[1718619513329,0.91323694,65719.0,65718.0,0.00045642]
[1718619513528,1.21756194,65719.0,65718.0,0.00045642]
[1718619513670,1.23156194,65719.0,65718.0,0.00045642]
[1718619513907,0.61291194,65719.0,65718.0,0.00045642]
[1718619514113,0.61591194,65719.0,65718.0,0.00045642]
[1718619514323,0.92023694,65719.0,65718.0,0.00045642]
[1718619514549,0.92523694,65719.0,65718.0,0.00045642]
[1718619514757,0.62091194,65719.0,65718.0,0.00045642]
[1718619515526,0.01233715,65719.0,65718.0,0.01327906]
[1718619515731,0.012,65719.0,65718.0,0.12847906]
[1718619515941,0.012,65719.0,65718.0,0.68987406]
[1718619516152,0.012,65719.0,65718.0,1.12049574]
[1718619516366,0.012,65719.0,65718.0,0.34967074]
[1718619516794,0.005,65719.0,65718.0,0.34967074]
[1718619517002,0.005,65719.0,65718.0,0.50183574]
[1718619517218,0.005,65719.0,65718.0,0.81616574]
[1718619517426,0.10033715,65731.0,65727.0,0.1239]
[1718619517632,0.00033715,65728.0,65727.0,0.1239]
[1718619518670,0.1,65731.0,65728.0,0.304281]
[1718619518671,0.009,65731.0,65728.0,0.304281]
[1718619518875,0.019,65731.0,65727.0,0.1239]
[1718619519307,0.01,65731.0,65730.0,0.554412]
[1718619519517,0.01,65731.0,65730.0,1.18252896]
[1718619519723,0.01,65731.0,65730.0,0.87825396]
[1718619520138,0.1,65743.0,65734.0,0.09068937]
[1718619520367,0.1,65743.0,65735.0,0.24707342]
[1718619520607,0.1,65743.0,65736.0,0.1752627]
[1718619520805,0.00033715,65740.0,65736.0,0.04898928]
[1718619521009,0.00033715,65738.0,65736.0,0.04898928]
[1718619521224,0.00033715,65736.0,65735.0,0.1208]
[1718619521896,0.00033715,65736.0,65735.0,0.002]
[1718619521897,0.45670715,65736.0,65735.0,0.002]
[1718619522574,0.45670715,65736.0,65735.0,0.001]
[1718619522796,0.76095415,65736.0,65735.0,0.001]
[1718619523019,0.45670715,65736.0,65735.0,0.001]
[1718619523247,0.76095415,65736.0,65735.0,0.001]
[1718619523700,0.45670715,65736.0,65735.0,0.001]
[1718619523947,0.45670715,65736.0,65728.0,0.0986]
[1718619523948,0.15247615,65729.0,65728.0,0.0986]
[1718619524170,0.15247615,65729.0,65728.0,0.22488192]
[1718619524171,0.00033715,65729.0,65728.0,0.22488192]
[1718619524595,0.76103415,65729.0,65728.0,0.12628192]
[1718619524821,0.08704389,65736.0,65723.0,0.1187]
[1718619524822,0.45679015,65724.0,65723.0,0.1187]
[1718619525046,0.45679015,65724.0,65718.0,0.21225642]
[1718619525047,0.152162,65719.0,65718.0,0.21225642]
[1718619525318,0.00033715,65720.0,65718.0,0.33854997]
[1718619525540,0.30463915,65724.0,65719.0,0.12629355]
[1718619525779,0.152155,65723.0,65720.0,0.12629355]
[1718619525984,0.152155,65723.0,65718.0,0.21225642]
[1718619525985,0.152155,65723.0,65721.0,0.12629355]
[1718619526195,0.30463915,65724.0,65718.0,0.11435642]
[1718619526196,0.45682415,65719.0,65718.0,0.11435642]
[1718619526657,0.15249915,65719.0,65718.0,0.24064913]
[1718619526866,0.15249915,65719.0,65718.0,0.238949]
[1718619527093,1.06547415,65719.0,65718.0,0.12629271]
[1718619527306,0.760825,65718.0,65717.0,0.00853]
[1718619527518,0.76116215,65718.0,65717.0,0.00853]
[1718619529003,0.76216215,65718.0,65717.0,0.00953]
[1718619529836,0.001,65718.0,65717.0,0.00953]
[1718619530007,0.00133715,65718.0,65717.0,0.00953]
[1718619530231,0.00133715,65718.0,65717.0,0.13583969]
[1718619530409,0.00233715,65718.0,65717.0,0.13683969]
[1718619530782,0.15450215,65718.0,65717.0,0.01053]
[1718619531005,0.76316215,65718.0,65717.0,0.01053]
[1718619532761,0.92524994,65718.0,65717.0,0.01053]
[1718619532977,1.22957994,65718.0,65717.0,0.01053]
[1718619533832,1.22857994,65718.0,65717.0,0.00953]
[1718619534481,1.10684994,65718.0,65717.0,0.00853]
[1718619534681,1.11084994,65718.0,65717.0,0.00853]
[1718619534904,1.41817994,65718.0,65717.0,0.00853]
[1718619535108,1.40417994,65718.0,65717.0,0.00853]
[1718619535361,1.42517994,65718.0,65717.0,0.00853]
[1718619535574,1.42217994,65718.0,65717.0,0.00853]
[1718619535784,1.41517994,65718.0,65717.0,0.008233]
[1718619536217,1.40517994,65718.0,65717.0,0.008233]
[1718619536426,1.41117994,65718.0,65717.0,0.008233]
[1718619537239,1.10184994,65718.0,65717.0,0.008233]
[1718619537455,1.11184994,65718.0,65717.0,0.008233]
[1718619537673,1.12284994,65718.0,65717.0,0.008233]
[1718619537903,1.43617994,65718.0,65717.0,0.008233]
[1718619538332,1.42717994,65718.0,65717.0,0.008233]
[1718619538558,1.53117994,65718.0,65717.0,0.008233]
[1718619538782,1.65347994,65718.0,65717.0,0.008233]
[1718619539217,1.64947994,65718.0,65717.0,0.008233]
[1718619539420,1.65847994,65718.0,65717.0,0.008233]
[1718619539630,1.64847994,65718.0,65717.0,0.008233]
[1718619540068,1.65847994,65718.0,65717.0,0.008233]
[1718619540717,1.34414994,65718.0,65717.0,0.008233]
[1718619541184,1.64847994,65718.0,65717.0,0.008233]
[1718619541397,1.64847994,65718.0,65717.0,0.00649575]
[1718619541607,1.65847994,65718.0,65717.0,0.00649575]
[1718619542949,1.64847994,65718.0,65717.0,0.00649575]
[1718619543223,1.22184994,65718.0,65717.0,0.00649575]
[1718619543458,0.125,65718.0,65717.0,0.21949575]
[1718619543694,0.125,65718.0,65717.0,0.5235617]
[1718619543695,0.025,65718.0,65717.0,0.5235617]
[1718619543888,0.025,65718.0,65717.0,0.8278967]
[1718619544318,0.025,65718.0,65717.0,0.3713947]
[1718619544530,0.009,65718.0,65717.0,0.3713947]
[1718619544734,0.009,65718.0,65717.0,0.8278967]
[1718619544947,0.009,65718.0,65717.0,0.5235617]
[1718619544948,0.003,65718.0,65717.0,0.5235617]
[1718619545172,0.003,65718.0,65717.0,0.3713947]
[1718619545380,0.004,65718.0,65717.0,0.34580112]
[1718619545806,0.005,65718.0,65717.0,0.49896812]
[1718619546019,0.25247915,65728.0,65718.0,0.162163]
[1718619546245,0.55670894,65728.0,65719.0,0.01]
[1718619546455,0.25208779,65728.0,65721.0,0.2193]
[1718619546661,0.25208779,65728.0,65722.0,0.12630537]
[1718619546881,0.608516,65734.0,65718.0,0.41863511]
[1718619546882,0.00127216,65736.0,65729.0,0.2193]
[1718619547137,0.00127216,65736.0,65731.0,0.152133]
[1718619547138,0.00093501,65736.0,65731.0,0.152133]
[1718619547376,0.00093501,65736.0,65732.0,0.12627773]
[1718619547637,0.00093501,65736.0,65733.0,0.12627773]
[1718619547900,0.00093501,65736.0,65735.0,0.456376]
[1718619548114,0.00093501,65736.0,65735.0,0.12627773]
[1718619548383,0.00093501,65736.0,65729.0,0.2193]
[1718619548384,0.00127216,65736.0,65729.0,0.2193]
[1718619548623,0.00127216,65736.0,65730.0,0.12626731]
[1718619548842,0.00093501,65736.0,65731.0,0.12626731]
[1718619549047,0.00293501,65736.0,65731.0,0.27840131]
[1718619549254,0.00593501,65736.0,65732.0,0.12626731]
[1718619549475,0.00593501,65736.0,65733.0,0.12626731]
[1718619549682,0.00293501,65736.0,65734.0,0.12626731]
[1718619549904,0.00293501,65736.0,65735.0,0.12626731]
[1718619550124,0.00293501,65736.0,65731.0,0.17442702]
[1718619550382,0.00033715,65735.0,65732.0,0.12626516]
[1718619550627,0.00033715,65735.0,65731.0,0.02429302]
[1718619550628,0.00033715,65734.0,65733.0,0.12626516]
[1718619550881,0.00033715,65732.0,65731.0,0.002]
[1718619551115,0.00033715,65732.0,65731.0,0.12827105]
[1718619551368,0.76099915,65732.0,65731.0,0.12827105]
[1718619551626,0.76099915,65732.0,65717.0,0.12309575]
[1718619551627,0.00033715,65722.0,65717.0,0.12309575]
[1718619551869,0.1836,65733.0,65718.0,0.12628672]
[1718619551870,0.00033715,65720.0,65718.0,0.12628672]
[1718619552103,0.00033715,65728.0,65718.0,0.12628672]
[1718619552358,0.00033715,65728.0,65719.0,0.31516597]
[1718619552603,0.00033715,65728.0,65720.0,0.12628672]
[1718619552833,0.00033715,65728.0,65721.0,0.12628672]
[1718619553055,0.00033715,65728.0,65722.0,0.12628672]
[1718619553303,0.152138,65730.0,65721.0,0.08533177]
[1718619553304,0.00033715,65730.0,65724.0,0.15215]
[1718619553517,0.00033715,65729.0,65725.0,0.12628672]
[1718619553755,0.45676915,65727.0,65726.0,0.12628672]
[1718619553998,0.00033715,65727.0,65726.0,0.12628672]
[1718619554211,0.00033715,65727.0,65726.0,0.12628405]
[1718619554427,0.00033715,65727.0,65722.0,0.05594738]
[1718619554428,0.00033715,65729.0,65722.0,0.06594738]
[1718619554637,0.00033715,65729.0,65723.0,0.13858412]
[1718619554861,0.15247315,65731.0,65723.0,0.01276646]
[1718619555098,0.001,65728.0,65727.0,0.152144]
[1718619555328,0.001,65728.0,65727.0,0.456432]
[1718619555550,0.001,65728.0,65726.0,0.01]
[1718619555766,0.001,65728.0,65724.0,0.26937521]
[1718619555767,0.001,65728.0,65724.0,0.26037521]
[1718619556016,0.001,65728.0,65725.0,0.02821417]
[1718619556230,0.00133715,65728.0,65726.0,0.005]
[1718619556444,0.00033715,65727.0,65726.0,0.005]
[1718619556670,0.001,65728.0,65726.0,0.005]
[1718619556671,0.00133715,65728.0,65726.0,0.005]
[1718619556878,0.00033715,65729.0,65724.0,0.2172]
[1718619557096,0.152132,65733.0,65726.0,0.0374357]
[1718619557311,0.00033715,65729.0,65726.0,0.0374357]
[1718619557523,0.304257,65734.0,65726.0,0.0374357]
[1718619557524,0.152135,65731.0,65726.0,0.0374357]
[1718619557740,0.152135,65731.0,65724.0,0.2172]
[1718619557741,0.15247215,65731.0,65727.0,0.02646357]
[1718619557958,0.304257,65734.0,65724.0,0.2272]
[1718619557959,0.00033715,65729.0,65724.0,0.2172]
[1718619558193,0.152137,65730.0,65726.0,0.004]
[1718619558194,0.00033715,65728.0,65726.0,0.004]
[1718619558437,0.30462515,65727.0,65724.0,0.2172]
[1718619558624,0.15248615,65725.0,65724.0,0.2172]
[1718619558895,0.15248615,65725.0,65724.0,0.2252]
[1718619559146,1.06538015,65725.0,65724.0,0.008]
[1718619559389,1.06538015,65725.0,65716.0,0.00853]
[1718619559390,0.15216,65720.0,65716.0,0.00853]
[1718619559633,0.00033715,65718.0,65716.0,0.00853]
[1718619559856,0.304298,65725.0,65716.0,0.00853]
[1718619559857,0.15249615,65721.0,65716.0,0.00853]
[1718619560379,0.152161,65720.0,65716.0,0.00853]
[1718619560663,0.15250215,65718.0,65716.0,0.00853]
[1718619560888,0.15250215,65718.0,65717.0,0.01949575]